[Event "*** SCC Grand Prix: Titled Tuesday Blitz"]
[Site "Chess.com"]
[Date "2020.09.29"]
[Round "7"]
[White "TrimitziosP7"]
[Black "ChessSkool"]
[Result "1-0"]
[WhiteElo "2832"]
[BlackElo "2696"]
[TimeControl "180+1"]
[EndTime "11:15:23 PDT"]
[Termination "TrimitziosP7 won on time"]

1. e4 {[%clk 0:03:00.9]} 1... c6 {[%clk 0:02:57.9]} 2. c4 {[%clk 0:02:55.8]}
2... d5 {[%clk 0:02:58.8]} 3. cxd5 {[%clk 0:02:53.4]} 3... cxd5 {[%clk
0:02:59.7]} 4. exd5 {[%clk 0:02:53.8]} 4... Nf6 {[%clk 0:03:00.1]} 5. Nc3 {[%clk
0:02:51.6]} 5... Nxd5 {[%clk 0:02:59.7]} 6. Bc4 {[%clk 0:02:51.2]} 6... Nb6
{[%clk 0:02:59.2]} 7. Bb3 {[%clk 0:02:49.1]} 7... Nc6 {[%clk 0:02:56.1]} 8. Nf3
{[%clk 0:02:49.2]} 8... Bf5 {[%clk 0:02:55.8]} 9. d4 {[%clk 0:02:43]} 9... e6
{[%clk 0:02:55.9]} 10. O-O {[%clk 0:02:41.1]} 10... Be7 {[%clk 0:02:51]} 11. Re1
{[%clk 0:02:37.5]} 11... O-O {[%clk 0:02:50.6]} 12. Bf4 {[%clk 0:02:34.6]} 12...
Nb4 {[%clk 0:02:42.2]} 13. Ne5 {[%clk 0:02:24.8]} 13... Rc8 {[%clk 0:02:33.9]}
14. Qf3 {[%clk 0:02:17.3]} 14... N6d5 {[%clk 0:02:03.8]} 15. Rad1 {[%clk
0:01:58.5]} 15... Nxf4 {[%clk 0:01:28.1]} 16. Qxf4 {[%clk 0:01:59.4]} 16... Bg5
{[%clk 0:01:26.8]} 17. Qf3 {[%clk 0:01:57.8]} 17... Nc2 {[%clk 0:01:22.8]} 18.
Bxc2 {[%clk 0:01:41.5]} 18... Bxc2 {[%clk 0:01:23.7]} 19. Ra1 {[%clk 0:01:41.8]}
19... Qxd4 {[%clk 0:01:04.7]} 20. Qxb7 {[%clk 0:01:35.9]} 20... Rb8 {[%clk
0:00:55.9]} 21. Qd7 {[%clk 0:01:34.3]} 21... Qb6 {[%clk 0:00:42.9]} 22. b3
{[%clk 0:01:24.6]} 22... Rbd8 {[%clk 0:00:29]} 23. Na4 {[%clk 0:01:20.1]} 23...
Qa5 {[%clk 0:00:16.4]} 24. Qc6 {[%clk 0:01:15.8]} 24... Rc8 {[%clk 0:00:16.6]}
25. Qf3 {[%clk 0:01:13.7]} 25... Bf6 {[%clk 0:00:16.4]} 26. Qg3 {[%clk
0:01:07.7]} 26... Rfd8 {[%clk 0:00:15.2]} 27. Nb2 {[%clk 0:00:57]} 27... Qc3
{[%clk 0:00:12.3]} 28. Nbc4 {[%clk 0:00:53.8]} 28... Qxg3 {[%clk 0:00:09.7]} 29.
hxg3 {[%clk 0:00:54.7]} 29... Bf5 {[%clk 0:00:08.7]} 30. Rad1 {[%clk 0:00:51.8]}
30... h5 {[%clk 0:00:08]} 31. Nd6 {[%clk 0:00:47.9]} 31... Rb8 {[%clk 0:00:04]}
32. Nc6 {[%clk 0:00:46.4]} 32... Rf8 {[%clk 0:00:01.3]} 33. Nxb8 {[%clk
0:00:46.2]} 33... Rxb8 {[%clk 0:00:02.2]} 34. Nxf5 {[%clk 0:00:47]} 34... exf5
{[%clk 0:00:03.1]} 35. Rd7 {[%clk 0:00:47.2]} 35... a5 {[%clk 0:00:03.1]} 36.
Rc1 {[%clk 0:00:46.2]} 36... Be5 {[%clk 0:00:01.8]} 37. Rc5 {[%clk 0:00:45.2]}
1-0

[Event "*** SCC Grand Prix: Titled Tuesday Blitz"]
[Site "Chess.com"]
[Date "2020.09.29"]
[Round "7"]
[White "MPGM"]
[Black "ChronicUnhappiness"]
[Result "1-0"]
[WhiteElo "2423"]
[BlackElo "2289"]
[TimeControl "180+1"]
[EndTime "11:15:23 PDT"]
[Termination "MPGM won on time"]

1. f4 {[%clk 0:03:00.9]} 1... c5 {[%clk 0:02:59.1]} 2. Nf3 {[%clk 0:03:00.7]}
2... Nc6 {[%clk 0:02:58.8]} 3. e3 {[%clk 0:03:00.4]} 3... d6 {[%clk 0:02:54.3]}
4. b3 {[%clk 0:03:00]} 4... Nf6 {[%clk 0:02:48.7]} 5. Bb2 {[%clk 0:02:59.4]}
5... e6 {[%clk 0:02:49.1]} 6. g3 {[%clk 0:02:58.6]} 6... Be7 {[%clk 0:02:48.7]}
7. Bg2 {[%clk 0:02:59.1]} 7... O-O {[%clk 0:02:48.6]} 8. O-O {[%clk 0:02:59.7]}
8... Qc7 {[%clk 0:02:46.7]} 9. a4 {[%clk 0:02:54.2]} 9... b6 {[%clk 0:02:46.3]}
10. Qe2 {[%clk 0:02:51.6]} 10... Bb7 {[%clk 0:02:45.6]} 11. Na3 {[%clk
0:02:47.3]} 11... Rfe8 {[%clk 0:02:42.7]} 12. f5 {[%clk 0:02:23.1]} 12... e5
{[%clk 0:02:25.5]} 13. e4 {[%clk 0:02:11.3]} 13... Nd4 {[%clk 0:02:23.8]} 14.
Nxd4 {[%clk 0:02:11.1]} 14... cxd4 {[%clk 0:02:17.1]} 15. d3 {[%clk 0:02:11]}
15... d5 {[%clk 0:02:10.6]} 16. exd5 {[%clk 0:01:59]} 16... Nxd5 {[%clk
0:02:02.1]} 17. Nc4 {[%clk 0:01:50.4]} 17... Bg5 {[%clk 0:01:50.6]} 18. Be4
{[%clk 0:01:40.7]} 18... Be3+ {[%clk 0:01:46.6]} 19. Kh1 {[%clk 0:01:39.4]}
19... f6 {[%clk 0:01:34]} 20. Qg2 {[%clk 0:01:34.6]} 20... Red8 {[%clk
0:01:30.9]} 21. Rae1 {[%clk 0:01:31.6]} 21... a6 {[%clk 0:01:16]} 22. Re2 {[%clk
0:01:26.4]} 22... b5 {[%clk 0:01:07.6]} 23. axb5 {[%clk 0:01:23.2]} 23... axb5
{[%clk 0:01:07.1]} 24. Nxe3 {[%clk 0:01:23.7]} 24... dxe3 {[%clk 0:00:38.1]} 25.
Bc1 {[%clk 0:01:22.1]} 25... Qc5 {[%clk 0:00:18.5]} 26. c4 {[%clk 0:01:20.8]}
26... bxc4 {[%clk 0:00:13.5]} 27. bxc4 {[%clk 0:01:21.3]} 27... Nc3 {[%clk
0:00:11.9]} 28. Bxb7 {[%clk 0:01:21.2]} 28... Nxe2 {[%clk 0:00:11.5]} 29. Bxa8
{[%clk 0:01:20.9]} 29... Nxc1 {[%clk 0:00:10.7]} 30. Bd5+ {[%clk 0:01:21]} 30...
Kh8 {[%clk 0:00:08.3]} 31. Rxc1 {[%clk 0:01:20.3]} 31... Qd4 {[%clk 0:00:07.1]}
32. Qe2 {[%clk 0:01:19.8]} 32... h6 {[%clk 0:00:05.6]} 33. Kg1 {[%clk
0:01:19.6]} 33... Rb8 {[%clk 0:00:04.3]} 34. Re1 {[%clk 0:01:19.4]} 34... Rb2
{[%clk 0:00:01.5]} 35. Qxe3 {[%clk 0:01:19]} 35... Qc3 {[%clk 0:00:02.4]} 36. c5
{[%clk 0:01:11.1]} 36... Qc2 {[%clk 0:00:02]} 37. Kf1 {[%clk 0:00:46.3]} 1-0

[Event "*** SCC Grand Prix: Titled Tuesday Blitz"]
[Site "Chess.com"]
[Date "2020.09.29"]
[Round "7"]
[White "tmr88"]
[Black "canary2016"]
[Result "0-1"]
[WhiteElo "2108"]
[BlackElo "1929"]
[TimeControl "180+1"]
[EndTime "11:15:24 PDT"]
[Termination "canary2016 won on time"]

1. e4 {[%clk 0:03:00.9]} 1... c5 {[%clk 0:02:59.7]} 2. Nf3 {[%clk 0:02:57.6]}
2... d6 {[%clk 0:02:59.8]} 3. d4 {[%clk 0:02:58.1]} 3... cxd4 {[%clk 0:02:59.3]}
4. Nxd4 {[%clk 0:02:57.1]} 4... Nf6 {[%clk 0:02:59.5]} 5. Nc3 {[%clk 0:02:57.5]}
5... a6 {[%clk 0:02:59.7]} 6. Bc4 {[%clk 0:02:56.2]} 6... e6 {[%clk 0:02:58.8]}
7. Bb3 {[%clk 0:02:56.8]} 7... b5 {[%clk 0:02:57.2]} 8. f4 {[%clk 0:02:56.3]}
8... Be7 {[%clk 0:02:57.1]} 9. Qf3 {[%clk 0:02:53.8]} 9... Qc7 {[%clk
0:02:53.4]} 10. Be3 {[%clk 0:02:47.7]} 10... O-O {[%clk 0:02:51.7]} 11. g4
{[%clk 0:02:45.5]} 11... Nc6 {[%clk 0:02:49.1]} 12. g5 {[%clk 0:02:42.6]} 12...
Nxd4 {[%clk 0:02:48.4]} 13. Bxd4 {[%clk 0:02:41.8]} 13... Nd7 {[%clk 0:02:47.9]}
14. O-O-O {[%clk 0:02:28.2]} 14... Nc5 {[%clk 0:02:47.1]} 15. Kb1 {[%clk
0:02:20]} 15... Nxb3 {[%clk 0:02:46.8]} 16. cxb3 {[%clk 0:02:19.4]} 16... Bb7
{[%clk 0:02:46.7]} 17. Rhg1 {[%clk 0:02:11.7]} 17... Rac8 {[%clk 0:02:46.2]} 18.
Rd2 {[%clk 0:01:49.1]} 18... b4 {[%clk 0:02:38]} 19. Ne2 {[%clk 0:01:48.7]}
19... d5 {[%clk 0:02:35.2]} 20. Qh5 {[%clk 0:01:32.1]} 20... dxe4 {[%clk
0:02:24]} 21. Qh6 {[%clk 0:01:30.6]} 21... e5 {[%clk 0:01:54.1]} 22. Bxe5 {[%clk
0:01:23.1]} 22... Qxe5 {[%clk 0:01:53.7]} 23. fxe5 {[%clk 0:01:20.3]} 23... gxh6
{[%clk 0:01:52.3]} 24. gxh6+ {[%clk 0:01:19.9]} 24... Kh8 {[%clk 0:01:52.4]} 25.
Rd7 {[%clk 0:01:08.1]} 25... Bc5 {[%clk 0:01:49.7]} 26. Rg7 {[%clk 0:01:01.8]}
26... Bc6 {[%clk 0:01:43.4]} 27. Rdxf7 {[%clk 0:00:55.9]} 27... Rxf7 {[%clk
0:01:43]} 28. Rxf7 {[%clk 0:00:55.4]} 28... Bb5 {[%clk 0:01:40.6]} 29. Nf4
{[%clk 0:00:39.1]} 29... Be3 {[%clk 0:01:37]} 30. a4 {[%clk 0:00:35]} 30... Bd3+
{[%clk 0:01:18.9]} 31. Ka2 {[%clk 0:00:28.3]} 31... Bxf4 {[%clk 0:01:17.1]} 32.
Rxf4 {[%clk 0:00:27.2]} 32... e3 {[%clk 0:01:16.9]} 33. e6 {[%clk 0:00:21]}
33... e2 {[%clk 0:01:12.8]} 34. e7 {[%clk 0:00:20.3]} 34... Kg8 {[%clk
0:01:07.4]} 35. Rg4+ {[%clk 0:00:15.4]} 35... Kf7 {[%clk 0:01:05.4]} 36. Rg7+
{[%clk 0:00:14.4]} 36... Ke6 {[%clk 0:00:57.6]} 37. Rg1 {[%clk 0:00:12.8]} 37...
Kxe7 {[%clk 0:00:56.1]} 38. Re1 {[%clk 0:00:10.1]} 38... Rf8 {[%clk 0:00:55.6]}
39. a5 {[%clk 0:00:07.6]} 39... Rf1 {[%clk 0:00:55]} 40. h4 {[%clk 0:00:05.9]}
40... Rxe1 {[%clk 0:00:54.6]} 41. h5 {[%clk 0:00:06.4]} 41... Ra1+ {[%clk
0:00:52]} 42. Kxa1 {[%clk 0:00:05.9]} 42... e1=Q+ {[%clk 0:00:51.6]} 0-1

[Event "*** SCC Grand Prix: Titled Tuesday Blitz"]
[Site "Chess.com"]
[Date "2020.09.29"]
[Round "7"]
[White "MrChampion_Coach"]
[Black "karinachess1"]
[Result "1-0"]
[WhiteElo "2377"]
[BlackElo "2491"]
[TimeControl "180+1"]
[EndTime "11:15:27 PDT"]
[Termination "MrChampion_Coach won by checkmate"]

1. d4 {[%clk 0:03:00.9]} 1... Nf6 {[%clk 0:02:59.6]} 2. c4 {[%clk 0:03:01]} 2...
e6 {[%clk 0:02:59.7]} 3. Nc3 {[%clk 0:03:01.4]} 3... d5 {[%clk 0:02:59.6]} 4.
cxd5 {[%clk 0:02:58.7]} 4... exd5 {[%clk 0:03:00.5]} 5. Bf4 {[%clk 0:02:57.5]}
5... c6 {[%clk 0:02:58.2]} 6. e3 {[%clk 0:02:57.8]} 6... Bd6 {[%clk 0:02:50.7]}
7. Bd3 {[%clk 0:02:57.5]} 7... O-O {[%clk 0:02:49.6]} 8. Nf3 {[%clk 0:02:56.1]}
8... Re8 {[%clk 0:02:47]} 9. O-O {[%clk 0:02:54.6]} 9... Qe7 {[%clk 0:02:34.4]}
10. Qc2 {[%clk 0:02:51.9]} 10... Nbd7 {[%clk 0:02:31.3]} 11. a3 {[%clk
0:02:47.4]} 11... a5 {[%clk 0:02:26.7]} 12. Rfe1 {[%clk 0:02:25.7]} 12... b5
{[%clk 0:01:06.6]} 13. h3 {[%clk 0:02:21.8]} 13... Bb7 {[%clk 0:01:04.5]} 14.
Ne2 {[%clk 0:01:48.5]} 14... Ne4 {[%clk 0:01:02.3]} 15. Bxd6 {[%clk 0:01:36.3]}
15... Qxd6 {[%clk 0:01:01.2]} 16. Nd2 {[%clk 0:01:32.7]} 16... Ndf6 {[%clk
0:00:52.6]} 17. Bxe4 {[%clk 0:01:29.2]} 17... dxe4 {[%clk 0:00:44.8]} 18. Ng3
{[%clk 0:01:28.4]} 18... Qd5 {[%clk 0:00:36.1]} 19. Rac1 {[%clk 0:01:27.6]}
19... Rad8 {[%clk 0:00:29.7]} 20. Qc3 {[%clk 0:01:24]} 20... a4 {[%clk
0:00:22.2]} 21. Qa5 {[%clk 0:01:18.2]} 21... h5 {[%clk 0:00:22]} 22. Rc5 {[%clk
0:01:16.9]} 22... Qe6 {[%clk 0:00:20.6]} 23. Nxh5 {[%clk 0:01:05.5]} 23... Nxh5
{[%clk 0:00:19.8]} 24. Rxh5 {[%clk 0:01:05.1]} 24... Qg6 {[%clk 0:00:18.9]} 25.
Rc5 {[%clk 0:01:00.7]} 25... Bc8 {[%clk 0:00:19.1]} 26. Kh2 {[%clk 0:01:00.2]}
26... Bd7 {[%clk 0:00:18.5]} 27. Qc7 {[%clk 0:00:59.2]} 27... Qf6 {[%clk
0:00:16.5]} 28. Qg3 {[%clk 0:00:57.2]} 28... Rc8 {[%clk 0:00:14.4]} 29. Nb1
{[%clk 0:00:55.9]} 29... Bf5 {[%clk 0:00:12.1]} 30. Nc3 {[%clk 0:00:55.7]} 30...
Bd7 {[%clk 0:00:10.3]} 31. Na2 {[%clk 0:00:55.6]} 31... Qe6 {[%clk 0:00:09.7]}
32. Nb4 {[%clk 0:00:52.5]} 32... Qb3 {[%clk 0:00:10]} 33. Re2 {[%clk 0:00:52.9]}
33... Qd1 {[%clk 0:00:10]} 34. Rec2 {[%clk 0:00:48.8]} 34... Qb1 {[%clk
0:00:08.2]} 35. Rg5 {[%clk 0:00:46.1]} 35... g6 {[%clk 0:00:08]} 36. Rcc5 {[%clk
0:00:45.1]} 36... Qxb2 {[%clk 0:00:07.2]} 37. Rxg6+ {[%clk 0:00:45.5]} 37...
fxg6 {[%clk 0:00:07]} 38. Qxg6+ {[%clk 0:00:46.4]} 38... Kf8 {[%clk 0:00:07.6]}
39. Qf6+ {[%clk 0:00:47]} 39... Kg8 {[%clk 0:00:06.1]} 40. Rg5+ {[%clk
0:00:47.9]} 40... Kh7 {[%clk 0:00:06]} 41. Qg7# {[%clk 0:00:48.8]} 1-0

[Event "*** SCC Grand Prix: Titled Tuesday Blitz"]
[Site "Chess.com"]
[Date "2020.09.29"]
[Round "7"]
[White "Savagelittlemole"]
[Black "sergiochess83"]
[Result "1-0"]
[WhiteElo "2624"]
[BlackElo "2787"]
[TimeControl "180+1"]
[EndTime "11:15:28 PDT"]
[Termination "Savagelittlemole won on time"]

1. e4 {[%clk 0:02:41.9]} 1... c5 {[%clk 0:02:52.6]} 2. Nf3 {[%clk 0:02:41.5]}
2... d6 {[%clk 0:02:52.2]} 3. d4 {[%clk 0:02:42]} 3... cxd4 {[%clk 0:02:52.2]}
4. Nxd4 {[%clk 0:02:42.9]} 4... Nf6 {[%clk 0:02:52.4]} 5. Nc3 {[%clk 0:02:43.8]}
5... a6 {[%clk 0:02:52.7]} 6. Be3 {[%clk 0:02:43.2]} 6... e5 {[%clk 0:02:49.3]}
7. Nb3 {[%clk 0:02:42.9]} 7... Be6 {[%clk 0:02:46.6]} 8. h3 {[%clk 0:02:41.6]}
8... Be7 {[%clk 0:02:30.9]} 9. f4 {[%clk 0:02:41.5]} 9... exf4 {[%clk
0:02:26.9]} 10. Bxf4 {[%clk 0:02:42.4]} 10... Nc6 {[%clk 0:02:25]} 11. Qe2
{[%clk 0:02:40.7]} 11... Ne5 {[%clk 0:02:22.7]} 12. O-O-O {[%clk 0:02:39.6]}
12... Qc7 {[%clk 0:02:15.7]} 13. Kb1 {[%clk 0:02:38.4]} 13... O-O {[%clk
0:02:15.1]} 14. Nd4 {[%clk 0:02:35.4]} 14... Rac8 {[%clk 0:02:08.8]} 15. Nxe6
{[%clk 0:02:33.2]} 15... fxe6 {[%clk 0:02:08.6]} 16. g4 {[%clk 0:02:16.3]} 16...
Nfd7 {[%clk 0:01:47]} 17. Bg3 {[%clk 0:02:02.2]} 17... b5 {[%clk 0:01:36.7]} 18.
h4 {[%clk 0:01:49.8]} 18... Nc4 {[%clk 0:00:55.6]} 19. Qd3 {[%clk 0:00:58.9]}
19... Nc5 {[%clk 0:00:41.4]} 20. Qd4 {[%clk 0:00:53.8]} 20... Bf6 {[%clk
0:00:14.5]} 21. Nd5 {[%clk 0:00:20.1]} 21... exd5 {[%clk 0:00:10.9]} 22. Qxd5+
{[%clk 0:00:20.4]} 22... Kh8 {[%clk 0:00:11.2]} 23. Bxc4 {[%clk 0:00:20.9]}
23... bxc4 {[%clk 0:00:11.4]} 24. Bxd6 {[%clk 0:00:20.6]} 24... Qb6 {[%clk
0:00:03.5]} 25. e5 {[%clk 0:00:20.5]} 25... Na4 {[%clk 0:00:03.7]} 26. Qd4
{[%clk 0:00:15.4]} 1-0

[Event "*** SCC Grand Prix: Titled Tuesday Blitz"]
[Site "Chess.com"]
[Date "2020.09.29"]
[Round "7"]
[White "Kislov_Oleg"]
[Black "TheMagnet"]
[Result "0-1"]
[WhiteElo "2354"]
[BlackElo "2574"]
[TimeControl "180+1"]
[EndTime "11:15:28 PDT"]
[Termination "TheMagnet won by checkmate"]

1. e4 {[%clk 0:03:00.9]} 1... c5 {[%clk 0:02:59.8]} 2. Nf3 {[%clk 0:03:00.3]}
2... g6 {[%clk 0:03:00.3]} 3. c3 {[%clk 0:02:58]} 3... Nc6 {[%clk 0:02:59.1]} 4.
d4 {[%clk 0:02:57.2]} 4... d5 {[%clk 0:02:58.3]} 5. exd5 {[%clk 0:02:46.4]} 5...
Qxd5 {[%clk 0:02:59.2]} 6. dxc5 {[%clk 0:02:41.4]} 6... Qxc5 {[%clk 0:02:57.8]}
7. Be3 {[%clk 0:02:40.7]} 7... Qa5 {[%clk 0:02:57.6]} 8. Nbd2 {[%clk 0:02:40.1]}
8... Bg7 {[%clk 0:02:53]} 9. Nc4 {[%clk 0:02:33.2]} 9... Qc7 {[%clk 0:02:51.2]}
10. a4 {[%clk 0:02:32]} 10... Nf6 {[%clk 0:02:49.3]} 11. Be2 {[%clk 0:02:17.9]}
11... O-O {[%clk 0:02:48.6]} 12. O-O {[%clk 0:02:17.7]} 12... Rd8 {[%clk
0:02:32.2]} 13. Qc1 {[%clk 0:02:16.6]} 13... Be6 {[%clk 0:02:26.5]} 14. Bf4
{[%clk 0:02:03.1]} 14... Qc8 {[%clk 0:02:26.3]} 15. Bh6 {[%clk 0:01:59.8]} 15...
Qc7 {[%clk 0:02:04.9]} 16. Bxg7 {[%clk 0:01:55.1]} 16... Kxg7 {[%clk 0:02:05.8]}
17. Qe3 {[%clk 0:01:31.9]} 17... Nd5 {[%clk 0:01:59.8]} 18. Qg5 {[%clk 0:01:12]}
18... Nf4 {[%clk 0:01:50.9]} 19. Bd1 {[%clk 0:00:31.4]} 19... Bxc4 {[%clk
0:01:47.1]} 20. Re1 {[%clk 0:00:31.9]} 20... Be6 {[%clk 0:01:32.8]} 21. Re4
{[%clk 0:00:30.4]} 21... Nh5 {[%clk 0:01:07.2]} 22. Rh4 {[%clk 0:00:28.8]} 22...
Rd5 {[%clk 0:01:07.2]} 23. Qe3 {[%clk 0:00:26.3]} 23... Qb6 {[%clk 0:01:02.8]}
24. Qe2 {[%clk 0:00:23.8]} 24... Rad8 {[%clk 0:00:58.9]} 25. b4 {[%clk
0:00:14.9]} 25... Qc7 {[%clk 0:00:56.6]} 26. Bb3 {[%clk 0:00:14.5]} 26... R5d6
{[%clk 0:00:54.7]} 27. Bc2 {[%clk 0:00:13.9]} 27... h6 {[%clk 0:00:50.3]} 28. b5
{[%clk 0:00:13.7]} 28... Na5 {[%clk 0:00:49.6]} 29. Rxh5 {[%clk 0:00:14.3]}
29... gxh5 {[%clk 0:00:49]} 30. Qe5+ {[%clk 0:00:15.2]} 30... f6 {[%clk
0:00:32.7]} 31. Qxh5 {[%clk 0:00:14.9]} 31... Bf7 {[%clk 0:00:33]} 32. Qf5
{[%clk 0:00:14.9]} 32... Kf8 {[%clk 0:00:29.5]} 33. Nd4 {[%clk 0:00:14.6]} 33...
Qxc3 {[%clk 0:00:27.6]} 34. Re1 {[%clk 0:00:06.8]} 34... Qxe1# {[%clk 0:00:27]}
0-1

[Event "*** SCC Grand Prix: Titled Tuesday Blitz"]
[Site "Chess.com"]
[Date "2020.09.29"]
[Round "7"]
[White "A-S-00"]
[Black "JoliyRoger"]
[Result "0-1"]
[WhiteElo "2261"]
[BlackElo "2444"]
[TimeControl "180+1"]
[EndTime "11:15:31 PDT"]
[Termination "JoliyRoger won by resignation"]

1. d4 {[%clk 0:02:58.7]} 1... Nf6 {[%clk 0:02:59.6]} 2. Nf3 {[%clk 0:02:57.6]}
2... e6 {[%clk 0:03:00.5]} 3. c3 {[%clk 0:02:57.6]} 3... c5 {[%clk 0:02:59.9]}
4. e3 {[%clk 0:02:45.7]} 4... b6 {[%clk 0:02:58.6]} 5. Bd3 {[%clk 0:02:45.2]}
5... Bb7 {[%clk 0:02:59.1]} 6. O-O {[%clk 0:02:44.9]} 6... Be7 {[%clk
0:02:59.3]} 7. Nbd2 {[%clk 0:02:42.8]} 7... d5 {[%clk 0:02:59.3]} 8. Ne5 {[%clk
0:02:40.3]} 8... O-O {[%clk 0:02:58.8]} 9. f4 {[%clk 0:02:39.6]} 9... Nbd7
{[%clk 0:02:56.1]} 10. Ndf3 {[%clk 0:02:36.9]} 10... Ne4 {[%clk 0:02:50.1]} 11.
Nxd7 {[%clk 0:02:32.5]} 11... Qxd7 {[%clk 0:02:48.5]} 12. Ne5 {[%clk 0:02:32.3]}
12... Qc7 {[%clk 0:02:49]} 13. Qc2 {[%clk 0:02:20.9]} 13... Rad8 {[%clk
0:02:45.4]} 14. Bd2 {[%clk 0:02:10]} 14... Bd6 {[%clk 0:02:41]} 15. Rac1 {[%clk
0:01:53.2]} 15... Rc8 {[%clk 0:02:39.9]} 16. Be1 {[%clk 0:01:41.5]} 16... Rfe8
{[%clk 0:02:38.2]} 17. g4 {[%clk 0:01:35.8]} 17... f6 {[%clk 0:02:28.3]} 18. Nf3
{[%clk 0:01:34.6]} 18... Qb8 {[%clk 0:02:15.8]} 19. Qg2 {[%clk 0:01:23.1]} 19...
cxd4 {[%clk 0:02:07.7]} 20. Nxd4 {[%clk 0:01:15.2]} 20... Bc5 {[%clk 0:01:52]}
21. Rd1 {[%clk 0:00:56.5]} 21... a6 {[%clk 0:01:47.9]} 22. f5 {[%clk 0:00:54.4]}
22... e5 {[%clk 0:01:37.3]} 23. Ne6 {[%clk 0:00:53.2]} 23... Bxe3+ {[%clk
0:01:33.7]} 24. Kh1 {[%clk 0:00:52.9]} 24... Nc5 {[%clk 0:01:25.4]} 25. Be2
{[%clk 0:00:40.6]} 25... Nxe6 {[%clk 0:01:20.5]} 26. fxe6 {[%clk 0:00:39.9]}
26... Rxe6 {[%clk 0:01:18.9]} 27. Bf3 {[%clk 0:00:25.4]} 27... e4 {[%clk
0:01:17.9]} 28. Be2 {[%clk 0:00:25.3]} 28... Bf4 {[%clk 0:01:04]} 29. Rxf4
{[%clk 0:00:18]} 29... Qxf4 {[%clk 0:01:03.2]} 30. Bg3 {[%clk 0:00:17.9]} 30...
Qg5 {[%clk 0:00:55.3]} 31. h4 {[%clk 0:00:16.8]} 31... Qg6 {[%clk 0:00:55.8]}
32. g5 {[%clk 0:00:15.1]} 32... fxg5 {[%clk 0:00:52.3]} 33. Bg4 {[%clk
0:00:14.4]} 33... Rce8 {[%clk 0:00:49.5]} 34. h5 {[%clk 0:00:13.4]} 34... Qf7
{[%clk 0:00:45.9]} 35. Rf1 {[%clk 0:00:13.2]} 35... Qe7 {[%clk 0:00:44.2]} 36.
Bxe6+ {[%clk 0:00:11.5]} 36... Qxe6 {[%clk 0:00:44.5]} 37. Qf2 {[%clk
0:00:10.6]} 37... d4 {[%clk 0:00:43.3]} 38. Qxd4 {[%clk 0:00:07]} 0-1

[Event "*** SCC Grand Prix: Titled Tuesday Blitz"]
[Site "Chess.com"]
[Date "2020.09.29"]
[Round "7"]
[White "BilodeauA"]
[Black "CheckThis4"]
[Result "1-0"]
[WhiteElo "2893"]
[BlackElo "2628"]
[TimeControl "180+1"]
[EndTime "11:15:34 PDT"]
[Termination "BilodeauA won by resignation"]

1. d4 {[%clk 0:03:00.9]} 1... d5 {[%clk 0:02:59]} 2. Nc3 {[%clk 0:03:01.3]} 2...
Nf6 {[%clk 0:02:58.6]} 3. Bf4 {[%clk 0:03:01.4]} 3... g6 {[%clk 0:02:50.8]} 4.
e3 {[%clk 0:03:01.2]} 4... Bg7 {[%clk 0:02:50.3]} 5. h4 {[%clk 0:03:01.5]} 5...
a6 {[%clk 0:02:39.2]} 6. Nf3 {[%clk 0:02:58.4]} 6... Bg4 {[%clk 0:02:35.5]} 7.
Be2 {[%clk 0:02:58.1]} 7... Nbd7 {[%clk 0:02:31.7]} 8. Ne5 {[%clk 0:02:54.4]}
8... Bxe2 {[%clk 0:02:29.9]} 9. Qxe2 {[%clk 0:02:55.3]} 9... c6 {[%clk
0:02:18.3]} 10. O-O-O {[%clk 0:02:53.6]} 10... h5 {[%clk 0:02:11]} 11. e4 {[%clk
0:02:45.7]} 11... dxe4 {[%clk 0:02:06.4]} 12. Nxe4 {[%clk 0:02:43.6]} 12... Nxe4
{[%clk 0:02:05]} 13. Qxe4 {[%clk 0:02:44.5]} 13... Nf6 {[%clk 0:02:05.1]} 14.
Qd3 {[%clk 0:02:38]} 14... Qd5 {[%clk 0:01:59.6]} 15. Kb1 {[%clk 0:02:38.3]}
15... Qe4 {[%clk 0:01:48.6]} 16. Qb3 {[%clk 0:02:23.2]} 16... O-O {[%clk
0:01:48.1]} 17. Bg5 {[%clk 0:02:14.4]} 17... b5 {[%clk 0:01:44.3]} 18. f3 {[%clk
0:02:04]} 18... Qd5 {[%clk 0:01:41.8]} 19. Qe3 {[%clk 0:02:00.8]} 19... Rfe8
{[%clk 0:01:20.5]} 20. g4 {[%clk 0:01:59.8]} 20... Rad8 {[%clk 0:01:12.1]} 21.
a3 {[%clk 0:01:46.7]} 21... c5 {[%clk 0:01:11.2]} 22. dxc5 {[%clk 0:01:41.2]}
22... Qxd1+ {[%clk 0:01:11.2]} 23. Rxd1 {[%clk 0:01:42.1]} 23... Rxd1+ {[%clk
0:01:11.2]} 24. Ka2 {[%clk 0:01:42.9]} 24... Nd5 {[%clk 0:01:00.3]} 25. Qe2
{[%clk 0:01:37.7]} 25... Rh1 {[%clk 0:00:59.9]} 26. gxh5 {[%clk 0:01:31.6]}
26... e6 {[%clk 0:00:42.1]} 27. h6 {[%clk 0:01:06.2]} 27... Bh8 {[%clk
0:00:31.9]} 28. c6 {[%clk 0:01:01.8]} 28... b4 {[%clk 0:00:31]} 29. axb4 {[%clk
0:00:30.7]} 29... Nxb4+ {[%clk 0:00:30.3]} 30. Kb3 {[%clk 0:00:30.9]} 30... Nd5
{[%clk 0:00:25.2]} 31. Nd7 {[%clk 0:00:28.1]} 31... Rc8 {[%clk 0:00:20]} 32. c4
{[%clk 0:00:26.5]} 32... Nb6 {[%clk 0:00:15.6]} 33. Nxb6 {[%clk 0:00:24.7]}
33... Rb8 {[%clk 0:00:15.4]} 34. c5 {[%clk 0:00:24.6]} 34... Rb1 {[%clk
0:00:14.7]} 35. c7 {[%clk 0:00:23.6]} 1-0